bitfinex/quotes_SOLUSD_20260224
["timestamp","ask_amount","ask_price","bid_price","bid_amount"]
[1771939330720,0.3,76.699,76.665,0.49162393]
[1771939330917,5.02506698,76.7,76.666,0.49162393]
[1771939330918,0.3,76.697,76.666,0.49162393]
[1771939331728,5.02506698,76.68,76.658,0.49162393]
[1771939331925,0.3,76.689,76.658,0.49162393]
[1771939333036,0.3,76.687,76.658,0.49162393]
[1771939334339,0.3,76.685,76.653,13.04580381]
[1771939334529,0.3,76.679,76.641,0.49162393]
[1771939335538,0.3,76.669,76.641,0.49162393]
[1771939335921,0.3,76.669,76.6,0.1]
[1771939336128,5.02506698,76.65,76.6,0.1]
[1771939336341,45.65197542,76.667,76.611,0.49162393]
[1771939336524,45.65197542,76.667,76.621,0.49162393]
[1771939336718,0.19999999,76.69,76.641,0.49162393]
[1771939336925,0.19999999,76.681,76.65,5.02506698]
[1771939337124,0.19999999,76.679,76.649,0.49162393]
[1771939337527,0.19999999,76.679,76.612,45.68474912]
[1771939337528,0.19999999,76.659,76.632,0.49162393]
[1771939337749,5.02506698,76.66,76.6,0.1]
[1771939337750,5.02506698,76.64,76.605,0.49162393]
[1771939337943,0.19999999,76.648,76.605,0.49162393]
[1771939338140,0.19999999,76.648,76.611,0.49162393]
[1771939338333,5.02506698,76.64,76.611,0.49162393]
[1771939338538,13.04818695,76.639,76.611,0.49162393]
[1771939338744,0.19999999,76.638,76.611,0.49162393]
[1771939339247,0.19999999,76.629,76.6,0.59162393]
[1771939339427,0.19999999,76.636,76.601,0.49162393]
[1771939340051,13.04818695,76.639,76.601,0.49162393]
[1771939340634,13.04818695,76.639,76.611,0.49162393]
[1771939341451,0.19999999,76.656,76.621,0.49162393]
[1771939341829,0.19999999,76.662,76.631,0.49162393]
[1771939342051,0.19999999,76.679,76.641,0.49162393]
[1771939342247,0.19999999,76.679,76.651,0.49162393]
[1771939342641,0.19999999,76.684,76.651,0.49162393]
[1771939343145,13.03967974,76.689,76.652,0.49162393]
[1771939343348,13.03967974,76.689,76.661,0.49162393]
[1771939343948,5.04082745,76.7,76.661,0.49162393]
[1771939343949,13.03797963,76.699,76.661,0.49162393]
[1771939344140,13.03797963,76.699,76.671,0.49162393]
[1771939344343,5.24082744,76.71,76.671,0.49162393]
[1771939344547,13.03627996,76.709,76.681,0.47454056]
[1771939344747,13.03509046,76.716,76.681,0.47454056]
[1771939345648,13.03509046,76.716,76.691,0.49260147]
[1771939345844,0.19999999,76.732,76.701,0.49260147]
[1771939346352,0.19999999,76.732,76.656,52.18056135]
[1771939346353,0.19999999,76.709,76.637,0.49260147]
[1771939346530,12.57052986,76.67,76.637,0.49260147]
[1771939346740,13.04257095,76.672,76.641,0.49260147]
[1771939346939,13.04188835,76.677,76.641,0.49260147]
[1771939348361,32.60037989,76.687,76.62,13.06313133]
[1771939348362,0.19999999,76.659,76.62,13.06313133]
[1771939348657,0.19999999,76.659,76.621,0.49260147]
[1771939349663,12.57052986,76.65,76.621,0.49260147]
[1771939349964,0.19999999,76.65,76.622,0.49260147]
[1771939351048,0.19999999,76.658,76.624,0.49260147]
[1771939351767,13.04333364,76.668,76.631,0.49260147]
[1771939352362,0.19999999,76.667,76.631,0.49260147]
[1771939352555,12.57052986,76.66,76.631,0.49260147]
[1771939352863,0.19999999,76.667,76.631,0.49260147]
[1771939353664,0.19999999,76.667,76.63,12.57052986]
[1771939353665,0.19999999,76.667,76.594,52.22299354]
[1771939353666,0.19999999,76.658,76.621,0.49260147]
[1771939353873,0.19999999,76.665,76.631,0.49260147]
[1771939354247,12.57052986,76.66,76.631,0.49260147]
[1771939355567,13.04478273,76.659,76.631,0.49260147]
[1771939356577,13.24478272,76.659,76.631,0.49260147]
[1771939357362,12.57052986,76.66,76.632,13.04937884]
[1771939357564,12.57052986,76.66,76.595,52.22218692]
[1771939357565,13.04386609,76.665,76.558,52.24768642]
[1771939357757,13.04386609,76.665,76.55,0.1]
[1771939357758,0.19999999,76.629,76.601,0.49260147]
[1771939359675,13.04899643,76.635,76.602,0.49260147]
[1771939360971,0.19999999,76.637,76.604,0.49260147]
[1771939361152,32.616132,76.65,76.611,0.49260147]
[1771939361153,13.04796005,76.641,76.611,0.49260147]
[1771939361354,13.24724021,76.645,76.611,0.49260147]
[1771939362563,13.04659343,76.649,76.621,0.49260147]
[1771939362969,0.19999999,76.657,76.621,0.49260147]
[1771939363163,0.19999999,76.657,76.623,0.49260147]
[1771939364360,12.57052986,76.65,76.623,0.49260147]
[1771939364559,12.77052985,76.65,76.623,0.49260147]
[1771939364777,0.19999999,76.65,76.623,0.49260147]
[1771939365347,13.24495289,76.658,76.625,0.49816187]
[1771939365567,0.19999999,76.657,76.625,0.49816187]
[1771939366460,68.33022221,76.684,76.631,0.49816187]
[1771939366461,0.19999999,76.664,76.631,0.49816187]
[1771939368174,13.04369432,76.666,76.633,0.49816187]
[1771939368679,0.19999999,76.659,76.633,0.49816187]
[1771939369377,13.24369431,76.666,76.633,0.49816187]
[1771939369570,0.19999999,76.665,76.633,0.49816187]
[1771939371087,0.19999999,76.665,76.608,65.26697752]
[1771939371088,0.19999999,76.659,76.626,0.49816187]
[1771939373480,13.24495289,76.658,76.628,0.49816187]
[1771939373658,13.24495289,76.658,76.631,0.49816187]
[1771939374059,0.19999999,76.667,76.631,0.49816187]
[1771939374370,13.24359167,76.666,76.631,0.49816187]
[1771939374570,0.19999999,76.665,76.631,0.49816187]
[1771939374875,0.19999999,76.677,76.641,0.49816187]
[1771939375177,13.04158945,76.678,76.624,0.45046149]
[1771939375178,0.19999999,76.659,76.624,0.45046149]
[1771939376479,13.24495289,76.658,76.626,0.45046149]
[1771939376887,16.78207803,76.686,76.626,0.45046149]
[1771939377063,0.19999999,76.669,76.631,0.45046149]
[1771939378010,0.19999999,76.669,76.624,13.05058274]
[1771939378283,0.19999999,76.652,76.625,0.45046149]
[1771939379082,0.19999999,76.668,76.631,0.45046149]
[1771939379488,0.19999999,76.666,76.631,0.45046149]
[1771939380782,13.04240125,76.673,76.633,0.45046149]
[1771939381270,13.24240124,76.673,76.633,0.45046149]
[1771939381470,0.19999999,76.672,76.633,0.45046149]
[1771939383485,0.19999999,76.672,76.635,0.45046149]
[1771939383672,0.19999999,76.672,76.641,0.45046149]
[1771939383869,13.0419166,76.676,76.641,0.45046149]
[1771939384300,0.19999999,76.686,76.651,0.45046149]
[1771939385102,12.57052986,76.68,76.651,0.45046149]
[1771939385699,12.57052986,76.68,76.653,0.45046149]
[1771939388308,25.81183661,76.68,76.655,0.45046149]
[1771939388689,0.19999999,76.679,76.655,0.45046149]
[1771939390994,0.19999999,76.679,76.657,0.45046149]
[1771939391189,5.03332347,76.68,76.657,0.45046149]
[1771939391503,13.04138029,76.679,76.657,0.45046149]
[1771939391705,5.03332347,76.68,76.657,0.45046149]
[1771939391898,0.19999999,76.678,76.657,0.45046149]
[1771939393212,13.04172046,76.677,76.657,0.45046149]
[1771939394599,0.19999999,76.678,76.657,0.45046149]
[1771939395215,13.03959686,76.69,76.659,0.45046149]
[1771939395393,18.07292033,76.69,76.66,5.03332347]
[1771939395594,18.07292033,76.69,76.661,0.45046149]
[1771939396311,18.07292033,76.69,76.663,0.45046149]
[1771939397816,0.19999999,76.689,76.665,0.45046149]
[1771939399210,0.19999999,76.689,76.667,0.45046149]
[1771939399929,5.03332347,76.68,76.63,5.03332347]
[1771939400098,5.03332347,76.67,76.641,0.45046149]
[1771939400616,0.19999999,76.669,76.641,0.45046149]
[1771939401298,0.19999999,76.667,76.641,0.45046149]
[1771939403718,0.19999999,76.665,76.641,0.45046149]
[1771939404418,0.19999999,76.659,76.626,0.48479529]
[1771939405619,13.24495289,76.658,76.626,0.48479529]
[1771939405816,5.03552217,76.66,76.631,0.4847741]
[1771939406120,13.24419035,76.663,76.631,0.4847741]
[1771939407218,0.19999999,76.662,76.631,0.4847741]
[1771939407416,0.19999999,76.649,76.611,0.4847741]
[1771939407716,0.19999999,76.649,76.621,0.4847741]
[1771939408311,13.04665483,76.648,76.621,0.4847741]
[1771939408698,13.04665483,76.648,76.6,0.1]
[1771939408699,0.19999999,76.647,76.613,0.4847741]
[1771939408902,0.19999999,76.639,76.601,0.4847741]
[1771939409123,0.19999999,76.639,76.611,0.4847741]
[1771939410621,13.04835721,76.638,76.613,0.4847741]
[1771939410802,0.19999999,76.645,76.621,0.4847741]
[1771939411608,13.0469956,76.646,76.621,0.4847741]
[1771939412018,13.04376182,76.665,76.631,0.4847741]
[1771939412218,0.19999999,76.664,76.631,0.4847741]
[1771939412404,13.04376182,76.665,76.631,0.4847741]
[1771939412814,0.19999999,76.668,76.633,0.4847741]
[1771939413028,5.03552217,76.65,76.626,0.4847741]
[1771939413210,5.23552216,76.65,76.626,0.4847741]
[1771939413410,0.19999999,76.649,76.626,0.4847741]
[1771939413913,0.19999999,76.655,76.626,0.4847741]
[1771939416612,13.04563362,76.654,76.627,13.05023033]
[1771939416817,13.04563362,76.654,76.628,0.4847741]
[1771939417318,13.24563361,76.654,76.628,0.4847741]
[1771939417520,0.19999999,76.653,76.622,0.4847741]
[1771939418712,13.04597401,76.652,76.624,0.4847741]
[1771939421029,13.245974,76.652,76.626,0.4847741]
[1771939421413,5.23552216,76.65,76.626,0.4847741]
[1771939422527,13.24648461,76.649,76.626,0.4847741]
[1771939422734,0.19999999,76.648,76.626,0.4847741]
[1771939424422,0.19999999,76.646,76.62,0.4847741]
[1771939425729,5.03552217,76.64,76.62,0.4847741]
[1771939425923,0.19999999,76.646,76.62,0.4847741]
[1771939426333,5.03552217,76.64,76.62,0.4847741]
[1771939426838,13.04784645,76.641,76.62,0.4847741]
[1771939427737,5.03552217,76.64,76.62,0.4847741]
[1771939427922,5.23552216,76.64,76.62,0.4847741]
[1771939428637,5.23552216,76.64,76.617,13.05181429]
[1771939428638,0.19999999,76.639,76.608,0.4847741]
[1771939429540,5.23552216,76.63,76.608,0.4847741]
[1771939429925,0.19999999,76.63,76.608,0.4847741]
[1771939430118,0.19999999,76.629,76.601,0.4847741]
[1771939432821,0.19999999,76.627,76.601,0.4847741]
[1771939433320,5.03552217,76.62,76.601,0.4847741]
[1771939433542,0.19999999,76.619,76.601,0.4847741]
[1771939434438,0.19999999,76.619,76.6,0.1]
[1771939435045,0.19999999,76.617,76.6,0.1]
[1771939436250,13.53467041,76.616,76.595,0.0847741]
[1771939436434,0.48256642,76.615,76.595,0.0847741]
[1771939436824,0.48256642,76.615,76.585,13.05731141]
[1771939437026,0.48256642,76.615,76.59,5.03552217]
[1771939438337,13.05244472,76.614,76.591,0.46391442]
[1771939438542,0.48256642,76.613,76.591,0.46391442]
[1771939439247,0.48256642,76.62,76.601,0.46391442]
[1771939439545,0.48256642,76.62,76.611,0.46391442]
[1771939439748,5.51808859,76.62,76.565,0.46391442]
[1771939439935,18.87913268,76.619,76.591,0.46391442]
[1771939440131,0.48256642,76.62,76.591,0.46391442]
[1771939440445,13.05159294,76.619,76.57,32.64958689]
[1771939440632,45.6805753,76.619,76.581,0.46391442]
[1771939440833,45.6805753,76.619,76.58,5.03552217]
[1771939440834,13.05159294,76.619,76.591,0.46391442]
[1771939441033,13.05040064,76.626,76.601,0.46391442]
[1771939441631,0.48256642,76.645,76.611,0.46391442]
[1771939441847,0.48256642,76.644,76.611,0.46391442]
[1771939442041,32.60048017,76.645,76.62,5.03552217]
[1771939442244,32.61442467,76.654,76.621,0.46391442]
[1771939442433,5.03552217,76.65,76.621,0.46391442]
[1771939444249,0.11743357,76.649,76.621,0.46391442]
[1771939444939,0.11743357,76.649,76.578,52.23370234]
[1771939444940,13.04648462,76.649,76.63,5.03552217]
[1771939445139,13.04648462,76.649,76.631,0.46391442]
[1771939445440,13.04478273,76.659,76.631,0.46391442]
[1771939445949,45.77417314,76.659,76.631,0.46391442]
[1771939446457,45.65673957,76.659,76.631,0.46391442]
[1771939447243,0.11743357,76.667,76.633,0.46391442]
[1771939447445,0.11743357,76.667,76.641,0.46391442]
[1771939447750,13.04308129,76.669,76.65,5.03552217]
[1771939447954,13.04308129,76.669,76.641,0.46391442]
[1771939447955,13.04308129,76.669,76.64,5.03552217]
[1771939448137,13.04308129,76.669,76.641,0.46391442]
[1771939448337,13.04251836,76.673,76.641,0.46391442]
[1771939448550,13.04170979,76.678,76.641,0.46391442]
[1771939448861,0.11743357,76.687,76.632,45.67282596]
[1771939448862,0.11743357,76.693,76.661,0.46391442]
[1771939449432,0.11743357,76.693,76.663,0.46391442]
[1771939450658,0.11743357,76.698,76.671,0.46391442]
[1771939452360,13.03740974,76.703,76.681,0.46391442]
[1771939454163,13.03594008,76.711,76.681,0.46391442]
[1771939454462,0.11743357,76.718,76.683,0.46391442]
[1771939454661,0.11743357,76.718,76.691,0.46391442]
[1771939455451,0.11743357,76.718,76.681,0.46391442]
[1771939455654,0.11743357,76.699,76.671,0.46391442]
[1771939456162,0.11743357,76.689,76.665,0.46391442]
[1771939457462,0.11743357,76.689,76.659,0.46391442]
[1771939458360,0.11743357,76.689,76.661,0.46391442]
[1771939459672,13.15711331,76.689,76.663,0.46391442]
[1771939459962,12.41672694,76.689,76.663,0.46391442]
[1771939463255,5.03218238,76.69,76.663,0.46391442]
[1771939464371,5.03218238,76.69,76.664,0.5]
[1771939465257,5.03218238,76.69,76.651,0.5]
[1771939465258,45.6388791,76.689,76.651,0.5]
[1771939465966,5.03218238,76.68,76.651,0.5]
[1771939466452,13.04138029,76.679,76.654,0.5]
[1771939466872,45.64483103,76.679,76.654,0.5]
[1771939467276,45.64483103,76.679,76.644,0.5]
[1771939467475,13.04082153,76.683,76.644,0.5]
[1771939467774,13.03797963,76.699,76.661,0.5]
[1771939467977,45.63307168,76.699,76.661,0.5]
[1771939468565,45.63307168,76.699,76.66,5.03218238]
[1771939468566,13.03797963,76.699,76.663,0.5]
[1771939470482,13.03797963,76.699,76.664,13.04393196]
[1771939470483,45.63292871,76.699,76.664,13.04393196]
[1771939470670,45.63292871,76.699,76.665,0.5]
[1771939472871,45.63292871,76.699,76.667,0.5]
[1771939473885,45.63292871,76.699,76.666,13.04359168]
[1771939473886,13.03797963,76.699,76.671,0.5]
[1771939474582,45.63292871,76.699,76.671,0.5]
[1771939474790,13.03797963,76.699,76.671,0.5]
[1771939475087,13.03797963,76.699,76.673,0.5]
[1771939475565,45.62162725,76.718,76.673,0.5]
[1771939475767,5.03218238,76.7,76.673,0.5]
[1771939476993,5.03218238,76.68,76.646,0.5]
[1771939477175,5.03218238,76.67,76.646,0.5]
[1771939479987,45.65078453,76.669,76.646,0.5]
[1771939481787,45.65078453,76.669,76.635,0.5]
[1771939482668,45.65078453,76.669,76.635,13.04886801]
[1771939482865,45.65078453,76.669,76.636,0.5]
[1771939484393,5.03218238,76.66,76.636,0.5]
[1771939484692,5.03218238,76.66,76.62,5.03218238]
[1771939484693,5.03218238,76.66,76.626,0.5]
[1771939485689,13.04478273,76.659,76.628,0.5]
[1771939487082,13.24478273,76.659,76.628,0.5]
[1771939487993,0.2,76.649,76.628,0.5]
[1771939489395,13.04665483,76.648,76.628,0.5]
[1771939493197,13.24665483,76.648,76.628,0.5]
[1771939494004,0.2,76.638,76.628,0.5]
[1771939495101,13.24838653,76.638,76.616,13.0520506]
[1771939495889,13.24838653,76.638,76.62,5.03218238]
[1771939496794,0.2,76.638,76.621,13.05125226]
[1771939497097,0.2,76.638,76.622,0.46459843]
[1771939497805,13.04852747,76.637,76.622,0.46459843]
[1771939498006,0.4993023,76.636,76.61,5.03218238]
[1771939498198,0.4993023,76.629,76.6,5.03218238]
[1771939499497,0.4993023,76.627,76.602,13.05447509]
[1771939500096,13.04948439,76.632,76.603,0.46459843]
[1771939500307,0.4,76.638,76.621,0.46459843]
[1771939501519,0.4,76.638,76.582,65.28868395]
[1771939501520,0.2,76.649,76.63,5.03218238]
[1771939501684,0.2,76.649,76.623,13.0509116]
[1771939501685,0.4993023,76.647,76.631,0.46459843]
[1771939502091,0.4993023,76.647,76.631,0.26459843]
[1771939502299,0.4993023,76.647,76.623,13.0509116]
[1771939502498,0.4993023,76.646,76.623,13.0509116]
[1771939502713,0.4993023,76.646,76.612,45.68474912]
[1771939503093,0.4993023,76.646,76.612,13.05278546]
[1771939503314,0.4993023,76.639,76.606,13.05370823]
[1771939503515,0.4993023,76.629,76.601,13.05465986]
[1771939504223,0.4993023,76.629,76.602,0.46459843]
[1771939504397,0.4993023,76.629,76.57,52.33976267]
[1771939504398,0.4993023,76.629,76.597,0.46459843]
[1771939504593,0.4993023,76.619,76.592,0.46459843]
[1771939505410,0.4993023,76.629,76.592,0.46459843]
[1771939505621,0.4993023,76.627,76.594,0.46459843]
[1771939506711,0.4993023,76.627,76.601,0.46459843]
[1771939507215,0.4993023,76.639,76.601,0.46459843]
[1771939507426,0.4993023,76.639,76.603,0.46459843]
[1771939507608,0.4993023,76.638,76.603,0.46459843]
[1771939507915,0.4993023,76.636,76.605,0.46459843]
[1771939508709,0.4993023,76.636,76.612,0.2]
[1771939509015,0.4993023,76.634,76.613,0.46459843]
[1771939509616,0.4993023,76.634,76.622,0.2]
[1771939509815,13.04886801,76.635,76.623,0.46459843]
[1771939510313,32.61721607,76.647,76.623,0.46459843]
[1771939510314,0.4993023,76.644,76.623,0.46459843]
[1771939511097,13.04750596,76.643,76.623,0.46459843]
[1771939512110,13.54668113,76.644,76.623,0.46459843]
[1771939512316,13.04737883,76.644,76.623,0.46459843]
[1771939513216,13.74609636,76.648,76.625,0.46459843]
[1771939513413,0.4993023,76.647,76.625,0.46459843]
[1771939513912,0.2,76.648,76.625,0.46459843]
[1771939514110,0.2,76.648,76.624,13.05074128]
[1771939514111,0.2,76.648,76.631,0.46459843]
[1771939514616,13.24666715,76.648,76.631,0.46459843]
[1771939514796,13.74596945,76.648,76.631,0.46459843]
[1771939515000,0.4993023,76.647,76.631,0.46459843]
[1771939515507,0.4993023,76.645,76.622,0.2]
[1771939515713,0.4993023,76.639,76.612,0.2]
[1771939516213,0.4993023,76.639,76.613,0.46459843]
[1771939517509,13.04835721,76.638,76.613,0.46459843]
[1771939517816,13.54765951,76.638,76.613,0.46459843]
[1771939518708,0.4993023,76.637,76.613,0.46459843]
[1771939520221,0.4993023,76.635,76.613,0.46459843]
[1771939520900,13.04800662,76.641,76.614,0.46459843]
[1771939521105,5.03218238,76.65,76.614,0.46459843]
[1771939521312,5.03218238,76.65,76.621,0.46459843]
[1771939521726,13.04563362,76.654,76.621,0.46459843]
[1771939522322,13.04478273,76.659,76.622,13.05108193]
[1771939522619,13.04478273,76.659,76.623,0.46459843]
[1771939523006,0.4993023,76.658,76.623,0.46459843]
[1771939524008,0.4993023,76.658,76.63,5.03218238]
[1771939524207,0.4993023,76.658,76.631,0.49363063]
[1771939524811,0.47460874,76.656,76.631,0.49363063]
[1771939526008,0.47460874,76.656,76.632,13.53440554]
[1771939526209,0.47460874,76.656,76.632,0.4850267]
[1771939527017,5.03602357,76.66,76.632,0.4850267]
[1771939527018,0.49299716,76.654,76.632,0.4850267]
[1771939527222,0.49299716,76.669,76.641,0.4850267]
[1771939527626,13.5350578,76.675,76.641,0.4850267]
[1771939528014,13.04206064,76.675,76.641,0.4850267]
[1771939528325,0.49299716,76.674,76.641,0.4850267]
[1771939528718,13.04240084,76.673,76.642,13.0476762]
[1771939528917,13.04240084,76.673,76.643,0.4850267]
[1771939529425,13.04240084,76.673,76.651,0.4850267]
[1771939530112,13.535398,76.673,76.651,0.4850267]
[1771939530503,0.49299716,76.672,76.651,0.4850267]
[1771939530904,0.49299716,76.672,76.653,0.4850267]
[1771939532011,13.04274106,76.671,76.653,0.4850267]
[1771939532312,0.49299716,76.672,76.653,0.4850267]
[1771939532512,13.04274106,76.671,76.653,0.4850267]
[1771939533532,0.49299716,76.672,76.653,0.4850267]
[1771939533828,13.04274106,76.671,76.653,0.4850267]
[1771939535408,0.49299716,76.672,76.653,0.4850267]
[1771939535814,0.49299716,76.697,76.661,0.4850267]
[1771939536010,0.49299716,76.697,76.666,0.4850267]
[1771939536413,0.49299716,76.689,76.66,5.03602357]
[1771939537035,0.49299716,76.689,76.66,5.52105027]
[1771939538031,0.49299716,76.687,76.661,0.4850267]
[1771939540119,5.03602357,76.69,76.661,0.4850267]
[1771939540120,0.49299716,76.685,76.661,0.4850267]
[1771939542335,0.49299716,76.679,76.65,5.52105027]
[1771939542629,0.49299716,76.679,76.651,0.4850267]
[1771939546440,0.49299716,76.677,76.651,0.4850267]
[1771939547438,13.04189055,76.676,76.651,0.4850267]
[1771939547629,0.49299716,76.675,76.651,0.4850267]
[1771939549346,0.49299716,76.673,76.646,0.4850267]
[1771939552351,13.04257095,76.672,76.647,13.04682505]
[1771939552550,0.49299716,76.671,76.648,0.4850267]
[1771939553953,0.49299716,76.671,76.65,0.4850267]
[1771939554130,13.53590833,76.67,76.65,0.4850267]
[1771939554330,13.04291117,76.67,76.65,0.4850267]
[1771939554531,0.49299716,76.669,76.65,0.4850267]
[1771939557844,0.46029804,76.674,76.652,0.46072074]
[1771939559245,13.04240084,76.673,76.654,0.46072074]
[1771939559835,0.46029804,76.674,76.654,0.46072074]
[1771939560037,0.46029804,76.682,76.654,0.46072074]
[1771939560748,13.04070002,76.683,76.653,13.04580381]
[1771939560749,13.04070002,76.683,76.661,0.46072074]
[1771939561455,0.46029804,76.699,76.67,5.03602357]
[1771939561652,13.04580381,76.729,76.681,0.46072074]
[1771939561837,0.46029804,76.705,76.681,0.46072074]
[1771939562151,13.03695605,76.706,76.667,0.46072074]
[1771939562152,0.46029804,76.699,76.667,0.46072074]
[1771939562560,0.46029804,76.699,76.662,13.04427226]
[1771939562561,0.46029804,76.699,76.671,0.46072074]
[1771939563557,0.46029804,76.697,76.671,0.46072074]
[1771939565940,0.46029804,76.707,76.68,5.03602357]
[1771939566257,0.46029804,76.707,76.672,0.46072074]
[1771939566956,0.46029804,76.699,76.672,0.46072074]
[1771939567957,13.49753289,76.704,76.674,0.46072074]
[1771939568253,0.46029804,76.703,76.681,0.46072074]
[1771939570059,5.03602357,76.69,76.637,65.24263736]
[1771939570242,0.46029804,76.689,76.658,0.46072074]
[1771939570436,0.46029804,76.689,76.661,0.46072074]
[1771939571364,0.46029804,76.689,76.663,0.46072074]
[1771939571758,0.46029804,76.687,76.663,0.46072074]
[1771939573849,0.46029804,76.687,76.665,0.46072074]
[1771939574362,0.46029804,76.687,76.637,65.24263736]
[1771939574363,0.46029804,76.685,76.649,0.46072074]
[1771939574558,0.46029804,76.685,76.66,5.03602357]
[1771939574747,0.46029804,76.685,76.661,0.46072074]
[1771939577567,13.04052996,76.684,76.661,0.46072074]
[1771939577741,0.46029804,76.683,76.661,0.46072074]
[1771939578753,0.46029804,76.683,76.656,0.46072074]
[1771939579448,0.46029804,76.679,76.656,0.46072074]
[1771939579663,0.46029804,76.677,76.656,0.46072074]
[1771939580670,0.46029804,76.677,76.651,0.46072074]
[1771939581868,0.46029804,76.669,76.633,0.46072074]
[1771939584569,0.47293573,76.667,76.635,0.47714697]
[1771939586566,0.46014174,76.665,76.635,0.47714697]
[1771939588980,0.46014174,76.663,76.637,0.48392164]
[1771939591183,0.46014174,76.661,76.637,0.48392164]
[1771939591781,0.46014174,76.659,76.633,13.04919074]
[1771939592379,0.46014174,76.659,76.634,0.48392164]
[1771939592786,0.46014174,76.649,76.603,45.69011657]
[1771939592964,0.46014174,76.649,76.62,5.03466915]
[1771939594480,0.46014174,76.649,76.58,103.5]
[1771939594481,0.46014174,76.647,76.6,5.03466915]
[1771939594687,0.46014174,76.639,76.601,0.48392164]
[1771939596882,13.04768264,76.642,76.62,5.03466915]
[1771939597191,13.04768264,76.642,76.621,0.48392164]
[1771939597377,0.46014174,76.645,76.621,0.48392164]
[1771939597779,5.03466915,76.67,76.631,0.48392164]
[1771939599091,5.03466915,76.67,76.63,5.03466915]
[1771939599092,45.65078453,76.669,76.633,0.48392164]
[1771939599783,0.46014174,76.668,76.633,0.48392164]
[1771939601384,13.04342155,76.667,76.634,13.04903828]
[1771939601598,0.46014174,76.666,76.635,0.48392164]
[1771939602575,0.46014174,76.666,76.634,13.04903828]
[1771939602576,0.46014174,76.664,76.637,0.48392164]
[1771939603986,0.46014174,76.664,76.641,0.48392164]
[1771939604782,0.46014174,76.662,76.641,0.48392164]
[1771939607093,0.46014174,76.66,76.641,0.48392164]
[1771939609183,0.46014174,76.669,76.643,0.48392164]
[1771939609391,0.46014174,76.668,76.643,0.48392164]
[1771939609996,0.46014174,76.668,76.631,0.48392164]
[1771939610196,0.46014174,76.668,76.632,0.48392164]
[1771939611601,0.46014174,76.666,76.634,0.48392164]
[1771939613894,0.46014174,76.664,76.636,0.48392164]
[1771939616287,0.49855136,76.662,76.638,0.46397965]
[1771939617579,0.49855136,76.66,76.638,0.46397965]
[1771939618397,0.49855136,76.66,76.641,0.46397965]
[1771939619400,13.04428306,76.662,76.641,0.46397965]
[1771939620401,0.49855136,76.661,76.641,0.46397965]
[1771939622996,0.49855136,76.661,76.63,5.03466915]
[1771939622997,0.49855136,76.659,76.637,0.46397965]
[1771939626710,0.49855136,76.659,76.639,0.46397965]
[1771939628314,0.49855136,76.669,76.641,0.46397965]
[1771939630312,0.49855136,76.669,76.634,13.04892595]
[1771939630494,5.03466915,76.67,76.601,0.46397965]
[1771939630495,5.03466915,76.64,76.601,0.46397965]
[1771939630816,0.49855136,76.639,76.601,0.46397965]
[1771939630993,111.8865219,76.668,76.575,97.94319294]
[1771939630994,0.49855136,76.649,76.621,0.46397965]
[1771939632213,0.49855136,76.649,76.631,0.46397965]
[1771939633891,0.49855136,76.66,76.632,0.46397965]
[1771939636095,13.04478273,76.659,76.634,0.46397965]
[1771939636315,0.49855136,76.658,76.634,0.46397965]
[1771939638220,0.49855136,76.656,76.634,0.46397965]
[1771939640004,0.49855136,76.649,76.621,0.46397965]
[1771939641213,0.49855136,76.649,76.622,13.05108193]
[1771939641419,0.49855136,76.649,76.623,0.46397965]
[1771939642207,0.49855136,76.647,76.623,0.46397965]
[1771939644338,0.49855136,76.655,76.625,0.46397965]
[1771939644703,0.49855136,76.655,76.621,0.47982716]
[1771939646427,0.48958974,76.653,76.623,0.48078843]
[1771939646610,0.48958974,76.653,76.631,0.48078843]
[1771939648006,0.48958974,76.651,76.631,0.48078843]
[1771939650621,0.48958974,76.649,76.621,0.48078843]
[1771939650824,0.48958974,76.649,76.616,0.48078843]
[1771939651024,0.48958974,76.649,76.611,0.48078843]
[1771939651207,0.48958974,76.639,76.611,0.48078843]
[1771939652218,0.48958974,76.649,76.62,0.48078843]
[1771939652415,0.48958974,76.649,76.611,0.48078843]
[1771939653430,0.48958974,76.647,76.611,0.48078843]
[1771939654732,0.48958974,76.647,76.613,0.48078843]
[1771939655930,13.04699527,76.646,76.613,0.48078843]
[1771939656126,0.48958974,76.645,76.613,0.48078843]
[1771939656833,0.48958974,76.639,76.602,0.48078843]
[1771939659115,0.48958974,76.637,76.604,0.48078843]
[1771939659323,0.48958974,76.637,76.611,0.48078843]
[1771939661816,0.48958974,76.635,76.611,0.48078843]
[1771939663436,0.48958974,76.633,76.611,0.48078843]
[1771939667644,13.53896858,76.632,76.611,0.48078843]
[1771939667945,13.53896858,76.632,76.581,0.5]
[1771939667946,5.03534825,76.62,76.581,0.5]
[1771939668424,5.03534825,76.61,76.581,0.5]
[1771939668745,14.06213625,76.631,76.581,0.5]
[1771939668926,5.03534825,76.62,76.581,0.5]
[1771939670146,45.6805753,76.619,76.582,13.05789872]
[1771939670440,13.05159294,76.619,76.583,0.5]
[1771939670848,45.6805753,76.619,76.583,0.5]